Cogmind - Beta 16 @@@ ROGUE MODE // 2025.11.18 @ 23:17:49 Player: Scringis Result: Core destroyed Performance ------------- Evolutions (3) 1500 Regions Visited (8) 1600 Robots Destroyed (163) 815 Value Destroyed (5263) 5263 Prototype IDs (14) 280 Alien Tech Used (0) 0 Bonus (747) 747 TOTAL SCORE: 10205 Bonus ------- High Alert Combat Kills 523 Follower Combat Kills 259 Friendly Fire -35 Cogmind --------- Core Integrity 0/700 Matter 81/300 Energy 310/310 System Corruption 17% Temperature Critical (585) Movement Walking (190) Ox1 Location -7/Factory Parts ------- > --- POWER (1) -------- Cooled Deuterium Engine > --- PROPULSION (4) --- Improved Carbon-fiber Leg Improved Carbon-fiber Leg > --- UTILITY (4) ------ Large Storage Unit Hacking Suite > --- WEAPON (4) ------- Improved Spread Laser Flak Cannon Gauss Cannon > --- INVENTORY (15) --- Enhanced Nuclear Core Improved Carbon-fiber Leg Hacking Suite Cooled Pulse Rifle Peak State ------------ > --- POWER ------------ Micro Nuclear Core > --- PROPULSION ------- Carbon-fiber Leg Improved Titanium Leg Improved Titanium Leg Cooled VTOL Module > --- UTILITY ---------- Large Storage Unit Advanced Visual Processing Unit Transmission Jammer Hacking Suite > --- WEAPON ----------- Precision Shock Rifle Gauss Rifle Flak Gun Flak Gun > --- INVENTORY -------- Improved Ion Engine Cooling System Medium Storage Unit Large Storage Unit Advanced Targeting Computer Advanced Targeting Computer Launcher Guidance Computer Transmission Jammer Medium Reflective Plating Improved Shield Generator Improved Grenade Launcher Mining Laser [Rating: 51] Favorites ----------- Power Light Ion Engine Engine Light Ion Engine Power Core Light Nuclear Core Propulsion Light Treads Treads Light Treads Leg Improved Carbon-fiber Leg Flight Unit VTOL Module Utility Large Storage Unit Device Cooling System Storage Large Storage Unit Processor Advanced Visual Processing Unit Hackware Hacking Suite Protection Medium Armor Plating Weapon Enhanced Autogun Energy Gun Improved EM Shotgun Energy Cannon Improved EM Pulse Cannon Ballistic Gun Enhanced Autogun Ballistic Cannon Gauss Cannon Launcher Heavy Rocket Launcher Build | -11 -10 -10 -9 -9 -8 -7 -7 -7 ------- Run | Yrd Mat Min Mat Min Mat Fac Was Fac Slots Evolved 6 | . . . 2 . 2 2 . . Power . | . . . . . . . . . Propulsion 2 | . . . . . 1 1 . . Utility 2 | . . . 1 . . 1 . . Weapon 2 | . . . 1 . 1 . . . Parts Attached 89 | 6 6 . 12 1 16 27 5 16 Power 11 | 1 . . 1 1 2 3 . 3 Engine 8 | 1 . . 1 1 2 1 . 2 Core 3 | . . . . . . 2 . 1 Reactor . | . . . . . . . . . Propulsion 25 | 2 1 . 2 . 5 9 1 5 Treads 10 | 2 1 . 2 . 4 1 . . Leg 12 | . . . . . . 7 1 4 Wheel . | . . . . . . . . . Hover . | . . . . . . . . . Flight 3 | . . . . . 1 1 . 1 Utility 16 | 1 1 . 5 . 2 3 3 1 Device 8 | . . . 3 . . 3 1 1 Storage 3 | 1 1 . . . . . 1 . Processor 3 | . . . 1 . 1 . 1 . Hackware 1 | . . . . . 1 . . . Protection 1 | . . . 1 . . . . . Artifact . | . . . . . . . . . Weapon 37 | 2 4 . 4 . 7 12 1 7 Energy Gun 10 | . 3 . 2 . 2 2 . 1 Energy Cannon 2 | . . . 1 . . . . 1 Ballistic Gun 18 | 2 1 . 1 . 4 9 . 1 Ballistic Cannon 4 | . . . . . . . . 4 Launcher 3 | . . . . . 1 1 1 . Special Weapon . | . . . . . . . . . Impact Weapon . | . . . . . . . . . Slashing Weapon . | . . . . . . . . . Piercing Weapon . | . . . . . . . . . Special Melee Weapon . | . . . . . . . . . Unidentified Prototypes 14 | . 1 . 3 . 3 3 . 4 Corrupted Parts 2 | . . . . . . 2 . . System Corruption 10 | . . . . . . 10 . . Parts Lost 33 | . . . 3 . 5 13 5 7 Power 3 | . . . 1 . . 1 1 . Propulsion 11 | . . . . . 2 5 2 2 Utility 3 | . . . 1 . . . . 2 Weapon 16 | . . . 1 . 3 7 2 3 Highest Loss Streak 4 | . . . 2 . 2 2 4 4 To Critical Strikes . | . . . . . . . . . Average Backups 10 | . 4 10 10 13 12 13 8 3 Power . | . . 1 . . . 1 . . Propulsion . | . . . . . . . . . Utility 5 | . 1 2 3 4 7 8 6 . Weapon 4 | . 2 7 6 6 4 2 1 1 Tool/Special . | . . . . . . . . . Unused Backups 20 | 1 . 2 . 1 3 2 8 3 Power 4 | . . 2 . . . 1 1 . Propulsion 1 | . . . . . . . . 1 Utility 8 | . . . . . . 1 6 1 Weapon 7 | 1 . . . 1 3 . 1 1 Tool/Special . | . . . . . . . . . Average Slot Usage (%) 89 | . 84 85 96 100 92 87 42 87 Engine 7 | . 14 14 10 11 8 2 2 6 Core 1 | . . . . . . 4 . . Treads 14 | . 27 28 22 22 20 3 . . Leg 8 | . . . . . . 19 4 26 Device 6 | . . . 5 11 6 7 4 6 Storage 9 | . 14 14 11 11 9 7 4 6 Processor 7 | . . . 9 11 9 7 7 7 Hackware 3 | . . . . . 2 7 7 7 Energy Gun 12 | . 9 28 21 22 13 3 . 5 Ballistic Gun 15 | . 18 . 10 11 21 21 9 6 Ballistic Cannon 1 | . . . . . . . . 9 Peak Build Rating 51 | 6 10 11 24 18 34 51 39 51 Average Rating 27 | 3 7 10 15 17 26 42 18 42 On Entrance 15 | . 6 10 11 16 18 31 35 13 Avg Prop Armor Cover (%) 5 | . . . . . . 5 . . Naked Turns . | . . . . . . . . . Heaviest Build 57 | 10 29 29 38 37 42 47 43 57 Greatest Support 72 | 40 40 40 40 40 66 71 18 72 Greatest Overweight (x) 4 | . 2 . . . 2 2 2 4 Average Overweight (x) . | . . . . . . . . . Largest Inventory Capacity 15 | 8 15 15 15 15 15 15 15 15 Average Capacity 14 | 7 11 15 15 15 15 15 10 14 Most Carried 15 | 5 10 13 14 15 15 15 15 6 Average Carried 11 | 1 4 10 11 14 13 13 8 3 Final Capacity 15 | 8 15 15 15 15 15 15 5 15 Final Carried 15 | . 10 13 12 15 11 15 3 4 Class Distribution -------------------- 56% | Skirmisher 19% | Mutant 14% | Scavenger-Skirmisher 6% | Tank Dominant Class ---------------- Mutant | -10/Materials Mutant | -10/Mines Tank | -9/Materials Skirmisher | -9/Mines Skirmisher | -8/Materials Skirmisher | -7/Factory Mutant | -7/Waste Skirmisher | -7/Factory Resources | -11 -10 -10 -9 -9 -8 -7 -7 -7 ----------- Run | Yrd Mat Min Mat Min Mat Fac Was Fac Matter Collected 3824 | 210 147 28 279 14 872 1445 223 606 Remotely . | . . . . . . . . . Salvage Created 6550 | . 294 209 982 54 2049 1978 248 736 Parts 364 | . 26 13 73 5 99 109 1 38 Haulers Intercepted 10 | . 1 . 2 . 3 4 . . Recyclers Shooed 4 | . . . . . 1 3 . . Parts Field Recycled . | . . . . . . . . . Retrieved Matter . | . . . . . . . . . Parts Self-Destructed . | . . . . . . . . . Prevented . | . . . . . . . . . Parts Restored . | . . . . . . . . . Kills | -11 -10 -10 -9 -9 -8 -7 -7 -7 ------- Run | Yrd Mat Min Mat Min Mat Fac Was Fac Combat Hostiles Destroyed 125 | . 9 5 20 1 35 36 1 18 Guns 98 | . 9 2 16 1 30 32 . 8 Cannons 10 | . . . . . . . . 10 AOE 17 | . . 3 4 . 5 4 1 . Classes Destroyed 17 | . 4 1 1 1 4 4 1 1 Worker 10 | . . . . . 1 3 . 6 Builder 2 | . . . . . . 1 . 1 Tunneler 1 | . . . . . . 1 . . Hauler 10 | . 1 . 2 . 3 4 . . Recycler 8 | . . 1 . . 3 2 . 2 Operator 5 | . 1 . 3 . . 1 . . Watcher 2 | . . . . . 2 . . . Swarmer 38 | . 6 3 6 . 8 9 . 6 Cutter 1 | . . . . . 1 . . . Grunt 54 | . 3 2 9 . 18 17 . 5 Brawler 4 | . . . . 1 1 . . 2 Duelist 2 | . . . . . . . . 2 Sentry 15 | . . . 5 . 5 3 . 2 Specialist 4 | . . . . . 2 2 . . Hunter 1 | . . . . . . 1 . . Programmer 5 | . . . . . . 4 . 1 Compactor 1 | . . . . . . . 1 . Best Kill Streak 9 | . 7 3 7 1 7 9 1 6 Combat Bots Only 8 | . 3 3 7 1 5 8 1 4 Max Kills in Single Turn 4 | . 1 2 2 1 2 4 1 3 Gunslinging 1 | . . . . . 1 1 . . Exploded 2 | . . 2 2 . 2 2 1 . Melee . | . . . . . . . . . Uniques/NPCs Destroyed . | . . . . . . . . . Combat | -11 -10 -10 -9 -9 -8 -7 -7 -7 -------- Run | Yrd Mat Min Mat Min Mat Fac Was Fac Hostile Shots Fired 581 | . 26 10 62 . 109 223 2 149 Missed 205 | . 9 4 22 . 35 82 . 53 Hits 376 | . 17 6 40 . 74 141 2 96 Melee 14 | . . . . . 7 . 2 5 Projectile 362 | . 17 6 40 . 67 141 . 91 Critical Strikes 17 | . . . . . 4 6 1 6 Damage Taken 6428 | . 163 66 520 . 1248 2310 303 1818 Core 993 | . 32 10 120 . 82 240 75 434 Absorbed by Shields . | . . . . . . . . . Core Remaining (%) 84 | 100 . 83 . 70 85 . . . Volleys Fired 301 | . 18 7 49 1 73 93 7 53 Largest 4 | . 2 2 3 3 4 4 4 4 Hottest 221 | . 90 90 110 110 145 171 123 221 Shots Fired 894 | . 36 14 136 4 257 287 15 145 Gun 801 | . 36 14 136 4 256 285 11 59 Cannon 86 | . . . . . . . . 86 Launcher 7 | . . . . . 1 2 4 . Special . | . . . . . . . . . Kinetic 606 | . 21 . 49 1 186 246 11 92 Thermal 47 | . . . . . . . . 47 Explosive 7 | . . . . . 1 2 4 . Electromagnetic 234 | . 15 14 87 3 70 39 . 6 Robot Hit Streak 15 | . 8 6 8 7 15 9 7 8 Robot Miss Streak 17 | . 6 3 6 1 5 8 1 17 Penetration Max 1 | . . . . . . 1 . 1 Secondary Targets 17 | . 2 . 1 . 10 4 . . Max Gunslinging Chain 1 | . 1 . 1 . 1 1 . . Shots Hit Robots 578 | . 20 9 83 4 164 179 14 105 Core Hits 375 | . 14 8 41 2 78 137 5 90 Critical Kills 2 | . . . . . 1 1 . . Critical Parts Destroyed 1 | . . . . . 1 . . . Critical Strikes 7 | . . . 1 . 3 1 . 2 Destroy 4 | . . . . . 3 1 . . Blast 2 | . . . . . . . . 2 Corrupt 1 | . . . 1 . . . . . Melee Attacks . | . . . . . . . . . Impact . | . . . . . . . . . Slashing . | . . . . . . . . . Piercing . | . . . . . . . . . Sneak Attacks . | . . . . . . . . . Combat Hostiles . | . . . . . . . . . Follow-up Attacks . | . . . . . . . . . Damage Inflicted 12173 | . 276 313 1531 73 3096 4101 486 2297 Guns 8945 | . 254 127 1333 49 2722 3480 202 778 Cannons 1281 | . . . . . . . . 1281 Explosions 1865 | . . 180 194 . 374 617 284 216 Melee . | . . . . . . . . . Ramming 82 | . 22 6 4 24 . 4 . 22 Kinetic 6912 | . 82 . 354 11 1853 3089 202 1321 Thermal 1886 | . . 180 194 . 238 395 . 879 Explosive 642 | . . . . . 136 222 284 . Electromagnetic 2651 | . 172 127 979 38 869 391 . 75 Impact . | . . . . . . . . . Slashing . | . . . . . . . . . Piercing . | . . . . . . . . . Highest Corruption 17 | . 1 1 1 1 5 16 16 17 Average Corruption 6 | . 1 1 1 1 5 8 16 14 Corruption Purged 5 | . . . . . . . . 5 Corruption Blocked . | . . . . . . . . . Effects 149 | . 3 4 1 8 25 54 5 49 Message Errors 30 | . . 1 1 3 1 12 1 11 Matter Fused 36 | . 1 . . 1 10 13 1 10 Heat Flow Errors 11 | . . 2 . . 3 2 . 4 Energy Discharges 14 | . . . . 1 1 7 . 5 Parts Fused 1 | . . . . . . . 1 . Data Loss (minor) 12 | . 2 . . 2 3 2 . 3 Data Loss (major) 7 | . . 1 . . 3 3 . . Misfires 7 | . . . . 1 2 2 . 2 Alerts 3 | . . . . . 1 1 . 1 Misdirections 7 | . . . . . . . . 7 Weapon Failures 21 | . . . . . 1 12 2 6 Overload Shots . | . . . . . . . . . Overflow Damage 297 | . . . . . 2 165 44 86 Projectiles 15 | . . . . . . . . 15 Explosions 282 | . . . . . 2 165 44 71 Melee . | . . . . . . . . . Knockbacks 15 | . . . . . . . . 15 Impact . | . . . . . . . . . Kinetic 14 | . . . . . . . . 14 Secondary 1 | . . . . . . . . 1 Self-Inflicted Damage 890 | . . . 46 . 88 352 204 200 Shots 14 | . . . 1 . 2 5 4 2 Rammed 12 | 1 2 4 1 3 . 1 . . Targets Rammed 13 | 1 2 4 1 3 . 1 . 1 Kicked 1 | . . . . . . . . 1 Crushed . | . . . . . . . . . Highest Temperature 585 | . 60 237 459 . 248 267 54 585 Average Temperature 75 | . 13 80 83 . 61 62 28 140 Received Heat Transfer 1626 | . 6 24 171 . 387 516 . 522 Effects 5 | . . . 1 . . . . 4 Shutdowns 2 | . . . 1 . . . . 1 Energy Bleed 1 | . . . . . . . . 1 Damage (core) 2 | . . . . . . . . 2 Siege Activations . | . . . . . . . . . Martial Activations . | . . . . . . . . . Shielding Activations . | . . . . . . . . . Robots Disrupted . | . . . . . . . . . Combat Hostiles . | . . . . . . . . . Robots Corrupted . | . . . . . . . . . Combat Hostiles . | . . . . . . . . . Parts Fried 4 | . . . 2 . . 2 . . Impact Corruptions . | . . . . . . . . . Robots Melted . | . . . . . . . . . Combat Hostiles . | . . . . . . . . . Parts Melted 3 | . . . 1 . 1 1 . . Heat Transferred 1400 | . . 100 150 . 150 300 . 700 Parts Sabotaged . | . . . . . . . . . Parts Stolen . | . . . . . . . . . Parts Stripped . | . . . . . . . . . Power Chain Reactions 8 | . . 2 3 . 3 . . . Alert | -11 -10 -10 -9 -9 -8 -7 -7 -7 ------- Run | Yrd Mat Min Mat Min Mat Fac Was Fac Maximum Alert Level 3 | . . . 2 . 2 3 1 2 Low Security (%) 63 | 100 100 100 60 100 71 33 . 69 Level 1 17 | . . . 27 . 23 16 100 28 Level 2 15 | . . . 12 . 4 41 . 1 Level 3 2 | . . . . . . 9 . . Level 4 . | . . . . . . . . . Level 5 . | . . . . . . . . . High Security . | . . . . . . . . . Max Security . | . . . . . . . . . Peak Influence 970 | . 161 161 441 162 512 970 345 455 Initial 338 | . . 48 11 162 . 226 338 175 Average 213 | . 48 89 195 54 146 397 294 179 Influence Increases 4737 | . 290 163 925 81 1019 1526 23 710 Destroy 0b10 Robot/C 2700 | . 180 100 560 60 720 720 . 360 Destroy 0b10 Robot/NC 195 | . 10 5 30 . 45 60 . 45 Destroy Leader 644 | . 32 20 146 10 160 186 . 90 Allied During Kill 39 | . . . 20 11 8 . . . Successful Hack 98 | . 8 5 17 . 21 47 . . Disable Machine 570 | . 15 15 105 . . 315 . 120 Destroy Structure 221 | . . 18 17 . 20 63 23 80 Partial Spotted 15 | . . . . . . 15 . . Lose Combat Pursuer 255 | . 45 . 30 . 45 120 . 15 Influence Decreases 4297 | . 164 258 538 499 521 1056 740 521 Entered New Map 1332 | . . 78 20 256 . 272 630 76 Time Decay 2575 | . 164 180 448 243 451 654 60 375 Lost Part 330 | . . . 30 . 50 130 50 70 Lost Ally 60 | . . . 40 . 20 . . . Squads Dispatched 36 | . 2 . 5 . 8 16 . 5 Investigation 11 | . 2 . 3 . 4 2 . . Extermination 5 | . . . . . . 4 . 1 Reinforcement 12 | . . . 2 . 4 5 . 1 Assault 2 | . . . . . . 2 . . Garrison 6 | . . . . . . 3 . 3 Intercept . | . . . . . . . . . Searches Triggered . | . . . . . . . . . Construction Impeded 1 | . . . . . . . . 1 Haulers Reinforced 1 | . . . . . . 1 . . Active Scanning Responses . | . . . . . . . . . Cargo Convoy Interrupts . | . . . . . . . . . Stealth | -11 -10 -10 -9 -9 -8 -7 -7 -7 --------- Run | Yrd Mat Min Mat Min Mat Fac Was Fac Distress Signals 8 | . 1 . 1 . 2 2 . 2 Communications Jammed 23 | . . . . . . 23 . . Distress Signals 23 | . . . . . . 23 . . Times Spotted 196 | . 18 5 42 2 44 56 5 24 Peak Tracking Total 6 | . 4 2 6 3 5 5 4 6 Tactical Retreats 11 | . 2 . 2 . 1 5 . 1 Traps | -11 -10 -10 -9 -9 -8 -7 -7 -7 ------- Run | Yrd Mat Min Mat Min Mat Fac Was Fac Traps Triggered 12 | . 3 . 1 . 1 3 . 4 Indirectly . | . . . . . . . . . Trap Hack Attempts . | . . . . . . . . . Triggered . | . . . . . . . . . Disarmed . | . . . . . . . . . Reprogrammed . | . . . . . . . . . Reused . | . . . . . . . . . Traps Extracted . | . . . . . . . . . Installed . | . . . . . . . . . Triggered . | . . . . . . . . . Machines | -11 -10 -10 -9 -9 -8 -7 -7 -7 ---------- Run | Yrd Mat Min Mat Min Mat Fac Was Fac Machines Disabled 38 | . 1 1 7 . . 21 . 8 Max in Single Turn 12 | . 1 1 1 . . 12 . 3 Garrison Access 1 | . . . . . . 1 . . Machines Repaired . | . . . . . . . . . Machines Dismantled . | . . . . . . . . . Machines Sabotaged . | . . . . . . . . . Overloaded Fab Kills . | . . . . . . . . . Hacking | -11 -10 -10 -9 -9 -8 -7 -7 -7 --------- Run | Yrd Mat Min Mat Min Mat Fac Was Fac Machines Accessed 36 | . 5 2 7 . 9 12 . 1 Terminals 30 | . 5 1 6 . 8 10 . . Fabricators 2 | . . . . . . 1 . 1 Repair Stations . | . . . . . . . . . Recycling Units . | . . . . . . . . . Scanalyzers 2 | . . . 1 . 1 . . . Garrison Access 1 | . . . . . . 1 . . Total Hacks 104 | . 17 5 23 . 29 29 . 1 Successful 55 | . 10 2 14 . 13 15 . 1 Failed 48 | . 7 3 9 . 15 14 . . Catastrophic 7 | . 1 1 1 . 2 2 . . Database Lockouts 1 | . . . . . 1 . . . Manual 93 | . 18 4 18 . 26 27 . . Terminals 91 | . 17 4 19 . 25 26 . . Fabricators 3 | . . . . . . 2 . 1 Repair Stations . | . . . . . . . . . Recycling Units . | . . . . . . . . . Scanalyzers 8 | . . . 4 . 4 . . . Garrison Access 1 | . . . . . . 1 . . Terminal Hacks 19 | . 5 1 5 . 3 5 . . Record 1 | . . . 1 . . . . . Robot Analysis 6 | . 3 . 2 . . 1 . . Open Door 1 | . . 1 . . . . . . Level Access Points 3 | . 1 . . . 1 1 . . Branch Access Points 2 | . . . . . 1 1 . . Terminal Index 4 | . 1 . 1 . 1 1 . . Hauler Manifests 1 | . . . 1 . . . . . Registered Components 1 | . . . . . . 1 . . Fabricator Hacks 2 | . . . . . . 1 . 1 Network Status 2 | . . . . . . 1 . 1 Repair Station Hacks . | . . . . . . . . . Recycling Unit Hacks . | . . . . . . . . . Scanalyzer 5 | . . . 3 . 2 . . . Retrieve Study 5 | . . . 3 . 2 . . . Garrison Access Hacks 1 | . . . . . . 1 . . Seal Access 1 | . . . . . . 1 . . Unauthorized Hacks 28 | . 5 1 6 . 8 8 . . Terminals 28 | . 5 1 6 . 8 8 . . Botnet 28 | . 5 1 6 . 8 8 . . Fabricators . | . . . . . . . . . Repair Stations . | . . . . . . . . . Recycling Units . | . . . . . . . . . Scanalyzers . | . . . . . . . . . Garrison Access . | . . . . . . . . . Data Cores Recovered 3 | . 1 . 2 . . . . . Used 2 | . 1 . 1 . . . . . Hacking Detections 26 | . 3 1 7 . 8 6 . 1 Full Trace Events 14 | . 3 1 3 . 5 2 . . Feedback Events 1 | . . . 1 . . . . . Corruption 1 | . . . 1 . . . . . Feedback Blocked . | . . . . . . . . . Robot Schematics Acquired . | . . . . . . . . . Robots Built . | . . . . . . . . . Authchips . | . . . . . . . . . Time . | . . . . . . . . . Total Robot Build Rating . | . . . . . . . . . Part Schematics Acquired . | . . . . . . . . . Parts Built . | . . . . . . . . . Authchips . | . . . . . . . . . Time . | . . . . . . . . . Total Part Build Rating . | . . . . . . . . . Part Studies Acquired 5 | . . . 3 . 2 . . . Parts Repaired . | . . . . . . . . . Time . | . . . . . . . . . Parts Recycled . | . . . . . . . . . Recycled Matter . | . . . . . . . . . Retrieved Matter . | . . . . . . . . . Retrieved Components . | . . . . . . . . . Parts Scanalyzed . | . . . . . . . . . Part Schematics Acquired . | . . . . . . . . . Parts Damaged . | . . . . . . . . . Bothacking | -11 -10 -10 -9 -9 -8 -7 -7 -7 ------------ Run | Yrd Mat Min Mat Min Mat Fac Was Fac Used RIF Installer . | . . . . . . . . . Robots Hacked . | . . . . . . . . . Non-combat . | . . . . . . . . . Combat . | . . . . . . . . . Robot Hacks Applied . | . . . . . . . . . Relay Couplers Released . | . . . . . . . . . Fabnet Peak Effective % . | . . . . . . . . . Robots Rewired . | . . . . . . . . . Allies Hacked . | . . . . . . . . . Hacks Repelled . | . . . . . . . . . Allies | -11 -10 -10 -9 -9 -8 -7 -7 -7 -------- Run | Yrd Mat Min Mat Min Mat Fac Was Fac Total Allies 5 | . . 2 . 3 . . . . Largest Group 3 | . . 2 2 3 3 . . . Highest-Rated Group 50 | . . 50 50 40 40 . . . Highest-Rated Ally 31 | . . 31 31 16 16 . . . Total Orders . | . . . . . . . . . Ally Attacks 48 | . . . 26 5 17 . . . Total Damage 566 | . . . 336 58 172 . . . Kills 12 | . . . 9 2 1 . . . Allies Corrupted . | . . . . . . . . . Allies Melted 1 | . . . . . 1 . . . Intel | -11 -10 -10 -9 -9 -8 -7 -7 -7 ------- Run | Yrd Mat Min Mat Min Mat Fac Was Fac Active Infowar (turns) 6865 | . . . 1214 863 1363 2436 130 859 Optics 6865 | . . . 1214 863 1363 2436 130 859 Jamming 2279 | . . . . . . 2210 69 . Robot Analysis Total 6 | . 3 . 2 . . 1 . . Derelict Logs Recovered 1 | . . . . 1 . . . . Drone Launches . | . . . . . . . . . Drone Recoveries . | . . . . . . . . . Exploration | -11 -10 -10 -9 -9 -8 -7 -7 -7 ------------- Run | Yrd Mat Min Mat Min Mat Fac Was Fac Turns Passed 8188 | 55 739 364 1358 863 1363 2436 130 880 Spaces Moved 4413 | 38 409 201 721 518 651 1301 116 458 Core 217 | 18 4 . . . . . 96 99 Treads 2740 | 20 405 201 721 518 651 224 . . Legs 1456 | . . . . . . 1077 20 359 Wheels . | . . . . . . . . . Hover . | . . . . . . . . . Flight . | . . . . . . . . . Fastest Speed 50 | 50 150 160 160 160 145 122 50 50 Average Speed 148 | 107 159 160 160 160 171 139 81 112 Slowest Speed 260 | 160 160 160 160 160 240 260 260 250 Overloaded Moves . | . . . . . . . . . Propulsion Burnouts . | . . . . . . . . . Robots Hopped . | . . . . . . . . . Potential Cave-ins . | . . . . . . . . . Cave-ins Triggered . | . . . . . . . . . Exploration Rate (%) 53 | 4 72 35 67 95 73 35 82 14 Regions Visited 8 Branch Regions 2 Pre-discovered Areas . | . . . . . . . . . Known Exits Taken 2 | . . 1 . . 1 . . . Unknown Exits Taken 4 | 1 1 . 1 1 . . . . Scrap Searched 2 | . . 1 . 1 . . . . Spaces Dug . | . . . . . . . . . Terrain Destroyed 224 | . . 19 12 . 16 61 34 82 Melee . | . . . . . . . . . Projectile 16 | . . . . . . 2 . 14 AOE 208 | . . 19 12 . 16 59 34 68 Terrain Rammed . | . . . . . . . . . Walls Destroyed . | . . . . . . . . . Machines Disabled . | . . . . . . . . . Actions | -11 -10 -10 -9 -9 -8 -7 -7 -7 --------- Run | Yrd Mat Min Mat Min Mat Fac Was Fac Total 5484 | 52 460 228 818 548 780 1741 139 718 Wait 461 | . 2 11 15 21 11 246 1 154 Move 4406 | 37 408 200 720 517 650 1301 115 458 Hop . | . . . . . . . . . Pick Up 128 | 7 17 4 11 4 16 41 9 19 Fast Attach . | . . . . . . . . . Attach 81 | 6 6 . 10 . 11 26 5 17 Detach 7 | . . . 1 . 1 3 1 1 Swap 32 | . 3 . 5 1 6 12 . 5 Drop 51 | 1 4 2 6 1 12 18 1 6 Fire 301 | . 18 7 49 1 73 93 7 53 Melee . | . . . . . . . . . Ram . | . . . . . . . . . Kick 1 | . . . . . . . . 1 Crush 12 | 1 2 4 1 3 . 1 . . Escape Stasis 4 | . . . . . . . . 4 Rewire . | . . . . . . . . . Trap . | . . . . . . . . . Miscellaneous . | . . . . . . . . . Route ------- -11/Scrapyard -10/Materials (discovered 5 exits: *Mat x3 / *Min x2) -10/Mines -9/Materials (discovered 3 exits: *Mat x2 / [*Min]) -9/Mines (discovered 3 exits: *Mat x2 / [*Exi]) -8/Materials (discovered 3 exits: *Fac x3) -7/Factory (discovered 6 exits: *Fac x4 / Low x2) -7/Waste -7/Factory (discovered 1 exit: *Low) History --------- Turn | Location | Event 14 | -11/Scrapyard | Discovered new exit (range 15) 56 | -11/Scrapyard | Entered Materials 84 | -10/Materials | Discovered new exit (range 15) 296 | -10/Materials | Discovered new exit (range 5) 307 | -10/Materials | Build established: Mutant 347 | -10/Materials | Discovered new exit (range 14) 584 | -10/Materials | Discovered new exit (range 9) 652 | -10/Materials | Discovered new exit (range 9) 740 | -10/Materials | Identified exit to Materials 795 | -10/Materials | Entered Mines 963 | -10/Mines | Received a Rocket Launcher from a helpful Derelict 1072 | -10/Mines | Discovered exit to Materials (range 11) 1079 | -10/Mines | Found the Drone Emporium 1086 | -10/Mines | Found Prototype Device 1159 | -10/Mines | Entered Materials 1159 | -9/Materials | Accompanied by 2 allies 1159 | -9/Materials | Evolved 2 slots: Utility x1, Weapon x1 1159 | -9/Materials | Identified Decoy Drone Bay 1164 | -9/Materials | Led the pair of lost Derelicts to an unsafe place 1263 | -9/Materials | Discovered new exit (range 14) 1597 | -9/Materials | Build established: Tank 1991 | -9/Materials | Discovered new exit (range 11) 2227 | -9/Materials | Destroyed 7 combat bots 2251 | -9/Materials | Discovered new exit (range 13) 2460 | -9/Materials | Build established: Skirmisher 2517 | -9/Materials | Entered Mines 2520 | -9/Mines | Met a Derelict bent on vengeance 2551 | -9/Mines | Joined a pair of Derelicts in attacking an 0b10 outpost 2683 | -9/Mines | Assisted by bots powering up and referring to "LRC-V3" 2725 | -9/Mines | Learned Materials emergency access door positions 2881 | -9/Mines | Discovered new exit (range 11) 3296 | -9/Mines | Discovered new exit (range 17) 3344 | -9/Mines | Deemed a non-threat by the Exiles lab entrance 3345 | -9/Mines | Discovered new exit (range 5) 3380 | -9/Mines | Entered Materials 3380 | -8/Materials | Accompanied by 3 allies 3380 | -8/Materials | Evolved 2 slots: Propulsion x1, Weapon x1 3503 | -8/Materials | Central database locked down 3637 | -8/Materials | Lost 3 allies 3879 | -8/Materials | Discovered new exit (range 18) 4657 | -8/Materials | Identified exit to Factory 4743 | -8/Materials | Entered Factory 4743 | -7/Factory | Evolved 2 slots: Propulsion x1, Utility x1 5527 | -7/Factory | Identified exit to Lower Caves 5527 | -7/Factory | Identified exit to Factory 6367 | -7/Factory | Build established: Scavenger-Skirmisher 6462 | -7/Factory | System corruption reached 10% 6911 | -7/Factory | Garrison activated, responded to threat 7028 | -7/Factory | Destroyed 8 combat bots 7143 | -7/Factory | First assault squad dispatched 7179 | -7/Factory | Sucked down chute 7179 | -7/Factory | Entered Waste 7200 | -7/Waste | Spotted C-40 Crusher 7200 | -7/Waste | Spotted C-40 Crusher 7211 | -7/Waste | Crushed by Compactor (1 part destroyed, 2 dropped) 7214 | -7/Waste | Destroyed C-40 Crusher 7245 | -7/Waste | Lost 4 parts (1p1n2w) 7249 | -7/Waste | Spotted C-40 Crusher 7249 | -7/Waste | Spotted C-40 Crusher 7261 | -7/Waste | Crushed by Compactor (1 part destroyed, 2 dropped) 7273 | -7/Waste | Spotted C-40 Crusher 7297 | -7/Waste | Discovered new exit (range 20) 7309 | -7/Waste | Entered Factory 7509 | -7/Factory | Build established: Mutant 7559 | -7/Factory | Discovered exit to Lower Caves (range 7) 7910 | -7/Factory | Core integrity fell below 50% 7929 | -7/Factory | Garrison activated, responded to threat 8010 | -7/Factory | Build established: Skirmisher 8185 | -7/Factory | Core integrity fell below 20% 8190 | -7/Factory | Core destroyed Last Messages --------------- 08176_ B-48 Gladiator destroyed. 08177_ U-05 Engineer builds a Wall. 08180_ %25EKKBU7FIWNKRN#YCT 08180_ Slug penetrates G-47 Trooper. 08180_ G-47 Trooper knocked back. 08181_ Imp. Carbon-fiber Leg destroyed. 08181_ Critical hit (Burn: +37). 08183_ Slug penetrates G-47 Trooper. 08183_ G-47 Trooper destroyed. 08184_ U-05 Engineer builds a Door. 08184_ U-05 Engineer builds a Wall. 08184_ Gauss Cannon destroyed. 08184_ Critical hit (Burn: +37). 08185_ Overheating: Core damaged (-126). 08186_ Overheating: Energy bleed (-58). 08186_ U-05 Engineer knocked back. 08188_ R-06 Scavenger collects Mace. 08189_ Critical hit (Burn: +37). 08189_ Slug penetrates Wall. 08190_ Overheating: Core damaged (-112). Map ----- +----------------------------------------------------+ | ??????????"??????????????????????????????????????? | | ?????????? ??????????????????????????????????????? | | ?????????? ??????????????????????????????????????? | | ?????????? ??????????????????????????????????????? | | ?????????? ??????????????????????????????????????? | | ?????????? ??????????????????????????????????????? | | ??????????*??????????????????????????????????????? | | ##########+##????????????????????????????????????? | | #????????????????????????????????????? | | """" ##???????????????????????????????????? | | ""R"" #?##########????????????????????????? | | "" "" #??# ###??????????????????????? | | #??# """"" + #??????????????????????? | | ! #?## " ###??????????????????????? | | #?## #????????????????????????? | | """" [#### #????????????????????????? | | [! """" "# # #????????##??????????????? | | !! """" ## # #???????# #??????????????? | | """ #### #??????# #???????????????? | | #? # [= [ #??##?# #????????????????? | | ######+#############+#########;############# " ?? | | !=%== u ?? | | %%[=* % % ? | | %=%%=%%%g % ? | | %!=%g %%% ? | | @u/!ur % ? | | ##############+############+#################????? | | ! #?# ??# #??????????????? | | #?# ??# #??????????????? | | " " " #?# # """" " "" #??????????????? | | " " " #?# # """" """" #??????????????? | | " " " #?# # """" """" #??????????????? | | " " " #?# # """ """" #??????????????? | | " " " #?# + = #??????????????? | | " " " #?# # """" #??????????????? | | " " " #?# # """" #??????????????? | | " " " #?# # """" #??????????????? | | " " " #?# # !! """" #??????????????? | | ?????# # ! #??????????????? | | #???????###########################??????????????? | | ???????????????????????##????????????????????????? | | ?????????????????????????????????????????????????? | | ?????????????????????????????????????????????????? | | ?????????????????????????????????????????????????? | | ?????????????????????????????????????????????????? | | ?????????????????????????????????????????????????? | | ?????????????????????????????????????????????????? | | ?????????????????????????????????????????????????? | | ?????????????????????????????????????????????????? | | ?????????????????????????????????????????????????? | +----------------------------------------------------+ Best States ------------- Heat Dissipation 61 Energy Generation 18 Energy Capacity 310 Matter Stores 300 Matter Capacity 300 Sight Range 20 Terrain Scan Density 10 Jamming Range 12 Armor Coverage 225 Evasion (%) 55 Targeting Accuracy 8 Recoil Reduction 3 Offensive Hacking 10 Item Schematics ----------------- None Robot Schematics ------------------ None Fabricated ------------ Nothing Repaired ---------- Nothing Studied --------- Assault Rifle | -9/Materials | Hacked Lgt. Assault Rifle | -9/Materials | Hacked Rocket Launcher | -9/Materials | Hacked Mni. Grenade Launcher | -8/Materials | Hacked Lgt. Treads | -8/Materials | Hacked Alien Tech Used ----------------- None Achievements -------------- None Challenges ------------ None Game ------ Seed MassSlugObliterator Manual? 0 Play Time 00:54:50 Cumulative 54.2 hours Start 2025.11.18 @ 22:28:06 End 2025.11.18 @ 23:17:49 Sessions 1 Manual Loads 0 Difficulty Rogue Special Mode None Game No. 149 Rogue 149 Adventurer 0 Explorer 0 Win Type - Total 0 Types 0/0/0/0/0/0/0/0/0/0 Lore% 32 Gallery% 33 Achievement% 27 Wizard Run 0 Options --------- Layout 1 ASCII 0 Keyboard 0 Movement Numpad Keybinds 0 Fullscreen 2 Font 24/Smallcaps Map View 50x35 Zoom Use 0% Tactical HUD 1 Map Filters NONE Filters NONE Steam 1 RUN: 90896dd1-52ae-455d-b478-56d5357e28e8